Workbook

Sheet PFS
A3: PLANILHA DE CUSTOS DO VALOR DO ORÇAMENTO DE REFERÊNCIA DOS SERVIÇOS DE O&M | N3: CODIGO:
N4: PFS
A5: NOME DA CONSULTORA:
A7: PERÍMETRO(S): | G7: OBJETO: | O7: EDITAL:
A8: PPI Betume | G8: O&M PPI Betume
A9: SERVIÇOS PAGOS A PREÇO GLOBAL
A10: CUSTOS DIRETOS | N10: =N12+N15+N22 -> 226007.5815
A11: MÃO-DE-OBRA
A12: A - TOTAL DE SALÁRIO DA EQUIPE | N12: =SUM(N13) -> 109464.21
A13: A1 - TOTAL SALÁRIOS DA EQUIPE COM VÍNCULO (PFS-I) | N13: ='PFS_I Equipe'!E23 -> 109464.21
A15: B - TOTAL DE ENCARGOS SOCIAIS | N15: =SUM(N16) -> 77314.57152
A16: B1 - 70,18% INCIDENTE SOBRE O ITEM A1 (PFS_VII) | N16: ='PFS_I Equipe'!G23 -> 77314.57152
A18: OUTRAS DESPESAS
A19: C - DESPESAS | N19: 0
A20: D - DESPESAS GERAIS - FORNECIMENTOS (PFS-III) | N20: =ROUND(('PFS_III Desp Gerais - Forneci'!I23),2) -> 15021.8
A21: E - DESPESAS GERAIS SERVIÇOS (PFS-II) | N21: =ROUND(('PFS_II Desp Gerais - Serviços'!I28),2) -> 24207
A22: TOTAL DE OUTRAS DESPESAS | N22: =SUM(N19:O21) -> 39228.8
A23: CUSTOS INDIRETOS, LUCRO E TRIBUTOS - CILT | N23: =SUM(N24:N27) -> 72346.86
A24: F - CUSTO DE ADMINISTRAÇÃO (INDIRETOS) - (6,00% DOS ITENS A+B+C+D+E) - (PFS-V) | N24: ='PFS_V_ Det_ Custos Adm_'!G30 -> 13560.46 | Q24: =0.06*(N12+N15+N19+N20+N21) -> 13560.45489
A25: G - REMUNERAÇÃO DA EMPRESA (LUCRO) - (6,79% DOS ITENS A+B+C+D+E+F) | N25: =ROUND(((N10+N24)*0.0679),2) -> 16266.67 | Q25: =0.0679*(N12+N15+N19+N20+N21+N24) -> 16266.67002
A26: H - DESPESAS FISCAIS (TRIBUTOS) - (16,62% = DF' DOS ITENS A+B+C+D+E+F+G) - (PFS VIII) | N26: ='PFS_VIII Det_ Desp Fiscais'!H33 -> 42519.73 | Q26: =0.1662*(N12+N15+N19+N20+N21+N24+N25) -> 42519.72906
A28: TOTAL DA PROPOSTA | N28: =ROUND((N10+N23),2) -> 298354.44
A29: NOME DO INFORMANTE: | J29: QUALIFICAÇÃO:
A31: ASSINATURA: | N31: DATA:
A33: OBSERVAÇÃO:
A34: ESTE ORÇAMENTO FOI CALCULADO COM OS SEGUINTES % MÁXIMOS DE ENCARGOS SOCIAIS E CUSTOS INDIRETOS:
A35: 1. ENCARGOS SOCIAIS DA EQUIPE COM VÍNCULO COM DESONERAÇÃO = 70,63% SOBRE O SALÁRIO MENSAL
A36: 2. REMUNERAÇÃO DA EMPRESA (LUCRO) = 6,79% SOBRE OS ITENS DE CUSTOS DIRETOS + CUSTO DE ADMINISTRAÇÃO
A37: 3. DF' - SERVIÇOS e FORNECIMENTO = A SOMA DOS TRIBUTOS (ISS 5,00% + PIS 1,65% + COFINS 7,60% = 16,62%)
A38: 4. DESPESAS ADMINISTRATIVAS 6% (AC+RISCO+SEGURO+GARANTIA+DESPESAS FINANCEIRAS)
A39: 5. NÃO foram incluídos os tributos IRPJ e CSLL, em cumprimento ao Acórdão nº 325/2007 – TCU – Plenário.

Sheet PFS_I Equipe
A5: SALÁRIOS E ENCARGOS DA EQUIPE | I5: CODIGO:
I6: PFS-I
A7: NOME DA CONSULTORA:
A9: PERÍMETRO(S): | D9: OBJETO: | I9: EDITAL:
A10: Betume | D10: O&M PPI Betume
A11: CATEGORIA FUNCIONAL | B11: CBO | C11: TOTAL DE EMPREGADOS | D11: SALÁRIO MENSAL (R$)* | E11: TOTAL CUSTO SALÁRIOS DE B1 | F11: TOTAL CUSTO SALÁRIOS DE B2 | G11: TOTAL CUSTO ENC. SOCIAIS DE B1 | H11: TOTAL CUSTO ENC. SOCIAIS DE B2 | I11: TAXA DE ENCARGOS SOCIAIS %
K12: =C12/12 -> 0
K14: =C14/12 -> 0
A15: Eletricista | B15: 7156-15 | C15: 1 | D15: =ELETRICISTA!F39 -> 2507.0175 | E15: =D15*C15*12 -> 30084.21 | G15: =E15*I15 -> 21248.47752 | H15: - | I15: 0.7063 | K15: =C15/12 -> 0.08333333333
A17: Operador de adutoras e canais (canaleiro) | B17: 7170-20 | C17: 3 | D17: =CANALEIRO!F39 -> 1755 | E17: =D17*C17*12 -> 63180 | G17: =E17*I17 -> 44624.034 | I17: 0.7063
A19: Ajudante Comum | B19: 7170-20 | C19: 1 | D19: ='AJUDANTE COMUM'!F39 -> 1350 | E19: =D19*C19*12 -> 16200 | G19: =E19*I19 -> 11442.06 | I19: 0.7063
A23: TOTAIS | C23: =SUM(C12:C22) -> 5 | E23: =SUM(E12:E22) -> 109464.21 | G23: =SUM(G12:G22) -> 77314.57152 | H23: 0 | L23: =E23+G23 -> 186778.7815
A24: NOME DO INFORMANTE: | G24: QUALIFICAÇÃO:
A26: ASSINATURA: | H26: DATA:
A28: LEGENDA:
A31: OBSERVAÇÃO:
A33: Salários baseados no CCT 2023/24 do SIDUSCON

Sheet PFS_II Desp Gerais - Serviços
A2: DESPESAS GERAIS | I2: CODIGO:
I3: PFS-II
A4: NOME DA CONSULTORA:
A6: PERÍMETRO(S): | D6: OBJETO: | I6: EDITAL:
A7: Betume | D7: O&M PPI Betume
A8: ITEM | B8: DISCRIMINAÇÃO | F8: UNID. | G8: QUANT. | H8: CUSTOS (R$)
H9: UNITÁRIO | I9: TOTAL
A13: 1 | B13: ENCARGOS COMPLEMENTARES - SERVIÇOS
A14: 1.1 | B14: Transporte - (será de responsabilidade da CODEVASF) | F14: und | G14: ='PFS_I Equipe'!C23 -> 5 | H14: =ELETRICISTA!F43 -> 0 | I14: =G14*H14 -> 0
A15: 1.2 | B15: Auxílio alimentação (CCT 2023) | F15: und | G15: ='PFS_I Equipe'!C23 -> 5 | H15: =ELETRICISTA!F44*12 -> 2100 | I15: =G15*H15 -> 10500
A16: 1.3 | B16: Seguro de vida, invalidez e funeral (SINAPI 40864) | F16: und | G16: ='PFS_I Equipe'!C23 -> 5 | H16: =ELETRICISTA!F47*12 -> 154.68 | I16: =G16*H16 -> 773.4
A17: 1.4 | B17: Exames (SINAPI 40863) | F17: und | G17: ='PFS_I Equipe'!C23 -> 5 | H17: =ELETRICISTA!F48*12 -> 2586.72 | I17: =G17*H17 -> 12933.6
B28: TOTAL DE DESPESAS GERAIS | I28: =SUM(I14:I17) -> 24207
A29: NOME DO INFORMANTE: | G29: QUALIFICAÇÃO:
A31: ASSINATURA: | G31: DATA:
A33: OBSERVAÇÃO:

Sheet PFS_III Desp Gerais - Forneci
A4: DESPESAS GERAIS | I4: CODIGO:
I5: PFS-III
A6: NOME DA CONSULTORA:
A8: PERÍMETRO(S): | D8: OBJETO: | I8: EDITAL:
A9: Betume | D9: O&M PPI Betume
A10: ITEM | B10: DISCRIMINAÇÃO | F10: UNID. | G10: QUANT. | H10: CUSTOS (R$)
H11: UNITÁRIO | I11: TOTAL
A14: 1 | B14: ENCARGOS COMPLEMENTARES - FORNECIMENTO
A15: 1.1 | B15: EPI (SINAPI | F15: global | G15: 1 | H15: =12*(ELETRICISTA!F53+3*CANALEIRO!F53+'AJUDANTE COMUM'!F53) -> 13117.2 | I15: =G15*H15 -> 13117.2
A16: 1.2 | B16: Fardamento (ORSE) | F16: global | G16: 1 | H16: =12*(ELETRICISTA!F54+3*CANALEIRO!F54+'AJUDANTE COMUM'!F54) -> 1904.6 | I16: =G16*H16 -> 1904.6
B23: TOTAL DE DESPESAS GERAIS | I23: =SUM(I15:I22) -> 15021.8
A24: NOME DO INFORMANTE: | G24: QUALIFICAÇÃO:
A26: ASSINATURA: | G26: DATA:
A28: OBSERVAÇÃO:

Sheet PFS_IV Cronog Financ
A4: CRONOGRAMA FINANCEIRO | H4: CODIGO:
H5: PFS-IV
A6: NOME DA CONSULTORA:
A8: PERÍMETRO(S): | C8: OBJETO: | H8: EDITAL:
A9: Betume | C9: O&M do PPI Betume
A10: Nº | B10: TAREFA | C10: RELATÓRIO/SERVIÇO DE CAMPO | F10: MESES CORRIDOS | G10: VALOR DA PARCELA (R$)
A11: 1 | C11: Relatório mensal 01 | F11: 1 | H11: =PFS!$N$28/12 -> 24862.87
A12: 2 | C12: Relatório mensal 02 | F12: 2 | H12: =PFS!$N$28/12 -> 24862.87
A13: 3 | C13: Relatório mensal 03 | F13: 3 | H13: =PFS!$N$28/12 -> 24862.87
A14: 4 | C14: Relatório mensal 04 | F14: 4 | H14: =PFS!$N$28/12 -> 24862.87
A15: 5 | C15: Relatório mensal 05 | F15: 5 | H15: =PFS!$N$28/12 -> 24862.87
A16: 6 | C16: Relatório mensal 06 | F16: 6 | H16: =PFS!$N$28/12 -> 24862.87
A17: 7 | C17: Relatório mensal 07 | F17: 7 | H17: =PFS!$N$28/12 -> 24862.87
A18: 8 | C18: Relatório mensal 08 | F18: 8 | H18: =PFS!$N$28/12 -> 24862.87
A19: 9 | C19: Relatório mensal 09 | F19: 9 | H19: =PFS!$N$28/12 -> 24862.87
A20: 10 | C20: Relatório mensal 10 | F20: 10 | H20: =PFS!$N$28/12 -> 24862.87
A21: 11 | C21: Relatório mensal 11 | F21: 11 | H21: =PFS!$N$28/12 -> 24862.87
A22: 12 | C22: Relatório mensal 12 | F22: 12 | H22: =PFS!$N$28/12 -> 24862.87
A26: TOTAL DA FOLHA | H26: =SUM(H11:H25) -> 298354.44
A27: NOME DO INFORMANTE: | D27: QUALIFICAÇÃO:
A29: ASSINATURA: | F29: DATA:
A31: OBSERVAÇÃO:

Sheet PFS_V_ Det_ Custos Adm_
A4: DETALHAMENTO DO CUSTO DE ADMINISTRAÇÃO | G4: CODIGO:
G5: PFS-V
A6: NOME DA CONSULTORA:
A8: PERÍMETRO(S): | C8: OBJETO: | G8: EDITAL:
A9: Betume | C9: O&Mdo PPI Betume
A10: DISCRIMINAÇÃO | F10: VALORES
F11: % | G11: R$
A12: 1 | B12: Custos da equipe de O&M (PFS-I - Salários R$ 109.464,21 + Encargos R$ 77.314,57) | F12: 0.06 | G12: =ROUND((F12*('PFS_I Equipe'!E23+'PFS_I Equipe'!G23)),2) -> 11206.73
A13: 2 | B13: Despesas Gerais - Serviços (PFS-II Encargos Complementares R$ 24.207,00) | F13: 0.06 | G13: =ROUND(('PFS_II Desp Gerais - Serviços'!I28*F13),2) -> 1452.42
A14: 3 | B14: Despesas Gerais - Fornecimentos (PFS-III Fornecimentos e Enc. Complementares. R$ 15.021,80) | F14: 0.06 | G14: =ROUND(('PFS_III Desp Gerais - Forneci'!I23*F14),2) -> 901.31
B30: TOTAIS DO CUSTO DE ADMINISTRAÇÃO | F30: 0.06 | G30: =ROUND((SUM(G12:G29)),2) -> 13560.46
A32: NOME DO INFORMANTE: | D32: QUALIFICAÇÃO:
A33: ASSINATURA: | F33: DATA:
A34: OBSERVAÇAO:

Sheet PFS_VII Det_ Enc_ Soc_
A2: DETALHAMENTO DOS ENCARGOS SOCIAIS | G2: CODIGO:
G3: PFS-VII
A4: NOME DA CONSULTORA:
A6: PERÍMETRO(S): | C6: OBJETO: | G6: EDITAL:
A7: Betume | C7: O&M do PPI Betume
A8: DISCRIMINAÇÃO | F8: VALORES
F9: % | G9: R$
A10: A | B10: ENCARGOS SOCIAIS BÁSICOS
A11: A1 | B11: INSS | F11: 0.2 | G11: ='PFS_I Equipe'!$E$23*F11 -> 21892.842
A12: A2 | B12: FGTS | F12: 0.08 | G12: ='PFS_I Equipe'!$E$23*F12 -> 8757.1368
A13: A3 | B13: Incra | F13: 0.002 | G13: ='PFS_I Equipe'!$E$23*F13 -> 218.92842
A14: A4 | B14: Salário Educação | F14: 0.025 | G14: ='PFS_I Equipe'!$E$23*F14 -> 2736.60525
A15: A5 | B15: Sebrae | F15: 0.006 | G15: ='PFS_I Equipe'!$E$23*F15 -> 656.78526
A16: A6 | B16: Seguro contra acidente | F16: 0.03 | G16: ='PFS_I Equipe'!$E$23*F16 -> 3283.9263
A17: A7 | B17: Senai | F17: 0.01 | G17: ='PFS_I Equipe'!$E$23*F17 -> 1094.6421
A18: A8 | B18: Sesi | F18: 0.015 | G18: ='PFS_I Equipe'!$E$23*F18 -> 1641.96315
A19: SUBTOTAL DE "A" | F19: =SUM(F11:F18) -> 0.368 | G19: =SUM(G11:G18) -> 40282.82928
A21: B | B21: ENCARGOS SOCIAIS QUE RECEBEM INCIDÊNCIA DE "A"
A22: B1 | B22: 13º Salário | F22: 0.0833 | G22: ='PFS_I Equipe'!$E$23*F22 -> 9118.368693
A23: B2 | B23: Férias gozadas | F23: 0.0624 | G23: ='PFS_I Equipe'!$E$23*F23 -> 6830.566704
A24: B3 | B24: Auxílio enfermidade | F24: 0.0069 | G24: ='PFS_I Equipe'!$E$23*F24 -> 755.303049
A25: B4 | B25: Licença paternidade | F25: 0.0006 | G25: ='PFS_I Equipe'!$E$23*F25 -> 65.678526
A26: B5 | B26: Faltas justificadas | F26: 0.0056 | G26: ='PFS_I Equipe'!$E$23*F26 -> 612.999576
A27: B6 | B27: Auxílio acidente de trabalho | F27: 0.0009 | G27: ='PFS_I Equipe'!$E$23*F27 -> 98.517789
A28: B7 | B28: Salário maternidade | F28: 0.0002 | G28: ='PFS_I Equipe'!$E$23*F28 -> 21.892842
A29: SUBTOTAL DE "B" | F29: =SUM(F22:F28) -> 0.1599 | G29: =SUM(G22:G28) -> 17503.32718
A31: C | B31: ENCARGOS SOCIAIS QUE NÃO RECEBEM INCIDÊNCIA DE "A"
A32: C1 | B32: Aviso prévio indenizado | F32: 0.0371 | G32: ='PFS_I Equipe'!$E$23*F32 -> 4061.122191
A33: C2 | B33: Aviso prévio trabalhado | F33: 0.0009 | G33: ='PFS_I Equipe'!$E$23*F33 -> 98.517789
A34: C3 | B34: Férias indenizadas + 1/3 | F34: 0.0375 | G34: ='PFS_I Equipe'!$E$23*F34 -> 4104.907875
A35: C4 | B35: Depósito rescisão sem justa causa | F35: 0.0361 | G35: ='PFS_I Equipe'!$E$23*F35 -> 3951.657981
A36: C5 | B36: Indenização adicional | F36: 0.0031 | G36: ='PFS_I Equipe'!$E$23*F36 -> 339.339051
A37: SUBTOTAL DE "C" | F37: =SUM(F32:F36) -> 0.1147 | G37: =SUM(G32:G36) -> 12555.54489
A39: D | B39: REINCIDÊNCIAS
A40: D1 | B40: Reincidência de "A" sobre "B" | F40: 0.0604 | G40: ='PFS_I Equipe'!$E$23*F40 -> 6611.638284
A41: D2 | B41: Reincidência do FGTS sobre aviso prévio | F41: 0.0033 | G41: ='PFS_I Equipe'!$E$23*F41 -> 361.231893
A42: SUBTOTAL DE "D" | F42: =SUM(F40:F41) -> 0.0637 | G42: =SUM(G40:G41) -> 6972.870177
A44: TOTAIS DE ENCARGOS SOCIAIS | F44: =F42+F37+F29+F19 -> 0.7063 | G44: =G19+G29+G37+G42 -> 77314.57152
A45: NOME DO INFORMANTE: | D45: QUALIFICAÇÃO:
A46: ASSINATURA: | F46: DATA:
A47: Observação:

Sheet PFS_VIII Det_ Desp Fiscais
A4: DETALHAMENTO DE DESPESAS FISCAIS | H4: CODIGO:
H5: PFS-VIII
A6: NOME DA CONSULTORA:
A8: PERÍMETRO(S): | C8: OBJETO: | H8: EDITAL:
A9: Betume | C9: O&M do PPI Betume
A10: DISCRIMINAÇÃO | F10: VALORES
F11: DF % | G11: DF' % | H11: R$
A12: Em PFS (sobre Custos Diretos + Custos de Administração + Lucro)
A13: 1 - ISS | F13: 5 | G13: 5.83 | H13: =ROUND(((G13/100)*(PFS!N10+PFS!N24+PFS!N25)),2) -> 14915.16 | I13: =(H13/PFS!N28)*100 -> 4.99914129
A14: 2 - PIS | F14: 1.65 | G14: 1.93 | H14: =ROUND(((G14/100)*(PFS!N10+PFS!N24+PFS!N25)),2) -> 4937.61 | I14: =(H14/PFS!N28)*100 -> 1.654947719
A15: 3 - COFINS | F15: 7.6 | G15: 8.86 | H15: =ROUND(((G15/100)*(PFS!N10+PFS!N24+PFS!N25)),2) -> 22666.96 | I15: =(H15/PFS!N28)*100 -> 7.597326187
A16: 4 - CPRB | F16: 0 | G16: 0 | H16: =ROUND(((G16/100)*(PFS!N10+PFS!N24+PFS!N25)),2) -> 0 | I16: =(H16/PFS!N28)*100 -> 0
I17: =SUM(I13:I16) -> 14.2514152
A33: TOTAIS DE DESPESAS FISCAIS | F33: =ROUND((SUM(F12:F32)),2) -> 14.25 | G33: =ROUND(((1/(1-F33/100))-1)*100,2) -> 16.62 | H33: =ROUND(((PFS!N10+PFS!N24+PFS!N25)*(G33/100)),2) -> 42519.73
A34: NOME DO INFORMANTE: | D34: QUALIFICAÇÃO:
A36: ASSINATURA: | F36: DATA:
A38: Observação:
A39: As despesas fiscais - serviços e fornecimentos (DF) incidem sobre o total da fatura e não sobre os custos incorridos. Portanto aplicar a seguinte fórmula:
A40: DF' = { [ 1 / ( 1 - DF ) ] - 1 } x 100
A41: ou seja, para o valor máximo de 14,25%, o valor a ser aplicado na composição dos preços será: | I41: =((1/(1-0.1425))-1)*100 -> 16.6180758
A42: DF' = { [ 1 / ( 1 - 0,14125) ] - 1 } x 100
A43: DF' =0,1662 ou 16,62%

Sheet ELETRICISTA
A2: PLANILHA DE CUSTOS E FORMAÇÃO DE PREÇOS
A4: Nº Processo
A5: Licitação Nº
A6: Dia ___/___/___ às ___:___ horas
A8: Contratação dos serviços de operação de escavadeira hidráulica
A12: A | B12: Data de apresentação da proposta (dia/mês/ano)
A13: B | B13: Município/UF | F13: Aracaju/SE
A14: C | B14: Ano Acordo, Convenção ou Sentença Normativa em Dissídio Coletivo | F14: .2023
A15: D | B15: Nº de meses de execução contratual | F15: 12
A17: Identificação do Serviço
A19: Tipo de Seviço | D19: Unidade de medida | F19: Quantidade total a contratar
A20: I | B20: Eletricista | D20: 1 | F20: 1
A22: Anexo II - A - Mão-de Obra
A23: Mão-de-obra vincula à execução contratual
A24: Dados complementares para composição dos custos referente à mão-de-obra
A25: 1 | B25: Tipo de serviço | F25: Eletricista
A26: 2 | B26: Salário sem encargos (SINDUSCON/2023) | F26: 1885.62
A27: 3 | B27: Categoria profissional | F27: Eletricista
A28: 4 | B28: Data-base da categoria | F28: 1º de março
A30: MÓDULO 1 : COMPOSIÇÃO DA REMUNERAÇÃO
A31: 1 | B31: Composição da remuneração | F31: Valor (R$)
A32: A | B32: Salário Base | F32: =F26 -> 1885.62
A33: B | B33: Risco Profissional (30%) | F33: =F32*0.3 -> 565.686
A34: C | B34: Produtividade (6%) | F34: 0
A35: D | B35: Adicional Noturno (25%) | F35: 0
A36: E | B36: Descanso Semanal Remunerado | F36: =F37*20% -> 0
A37: F | B37: Intervalo Intrajornada (CLT) | F37: 0
A38: G | B38: Hora Feriado (CLT) | F38: =(F32+F33+F34)/220*10/2 -> 55.7115
A39: Total da Remuneração | F39: =SUM(F32:G38) -> 2507.0175
A41: MÓDULO 2 : BENEFÍCIOS MENSAIS E DIÁRIOS
A42: 2 | B42: Benefícios mensais e diários | F42: Valor (R$)
A43: A | B43: Transporte (de responsabilidade da CODEVASF) | F43: 0
A44: B | B44: Auxílio alimentação - Cesta Básica (SINDUSCON 2023) | F44: 175
A45: C | B45: Assistência médica e familiar | F45: 0
A46: D | B46: Auxílio creche | F46: 0
A47: E | B47: Seguro de vida, invalidez e funeral (SINAPI 40864) | F47: 12.89
A48: F | B48: Exames (SINAPI 40863) | F48: 215.56
A49: Total de benefícios mensais e diários | F49: =SUM(F43:G48) -> 403.45
A51: MÓDULO 3 : INSUMOS DIVERSOS
A52: 3 | B52: Insumos Diversos | F52: Valor (R$)
A53: A | B53: EPI (SINAPI 43496) | F53: 214.4
A54: B | B54: Fardamento (ORSE 00941) - (2 unid x R$ 190,46)/12= R$ 31,74 | F54: =2*190.46/12 -> 31.74333333
A55: C | B55: Cursos | F55: 0
A56: D | B56: Outros (especificar) | F56: 0
A57: Total de insumos diversos | F57: =SUM(F53:G56) -> 246.1433333
A59: MÓDULO 4: ENCARGOS SOCIAIS E TRABALHISTAS
A61: Submódulo 4.1 - Encargos previdenciários e FGTS
A63: 4.1 | B63: Encargos Previdenciários e FGTS (GRUPO A) | F63: % | G63: Valor (R$)
A64: A | B64: INSS | F64: 0.2 | G64: =F$39*F64 -> 501.4035
A65: B | B65: SESI/SESC | F65: 0.015 | G65: 37.6052625
A66: C | B66: SENAI/SENAC | F66: 0.01 | G66: 25.070175
A67: D | B67: INCRA | F67: 0.002 | G67: 5.014035
A68: E | B68: Salário Educação | F68: 0.025 | G68: 62.6754375
A69: F | B69: FGTS | F69: 0.08 | G69: 200.5614
A70: G | B70: Seguro acidente de trabalho | F70: 0.03 | G70: 75.210525
A71: H | B71: SEBRAE | F71: 0.006 | G71: 15.042105
A72: TOTAL | F72: =SUM(F64:F71) -> 0.368 | G72: =SUM(G64:G71) -> 922.58244
A74: Submódulo 4.2 - 13º Salário e Adicional de Férias
A76: 4.2 | B76: 13º Salário e Adicional de Férias (GRUPO B) | F76: % | G76: Valor (R$)
A77: A | B77: 13º Salário | F77: 0.0833 | G77: =$F$39*F77 -> 208.8345577
A78: B | B78: Férias gozadas | F78: 0.0624 | G78: =($F$39*F78) -> 156.437892
A79: C | B79: Auxílio enfermidade | F79: 0.0069 | G79: =$F$39*F79 -> 17.29842075
A80: D | B80: Licença paternidade | F80: 0.0006 | G80: =$F$39*F80 -> 1.5042105
A81: E | B81: Faltas justificadas | F81: 0.0056 | G81: =$F$39*F81 -> 14.039298
A82: F | B82: Auxílio acidente de trabalho | F82: 0.0009 | G82: =$F$39*F82 -> 2.25631575
A83: G | B83: Salário maternidade | F83: 0.0002 | G83: =$F$39*F83 -> 0.5014035
A84: TOTAL | F84: =SUM(F77:F83) -> 0.1599 | G84: =SUM(G77:G83) -> 400.8720982
A86: Submódulo 4.3 - Provisão para Rescisão
A88: 4.3 | B88: Provisão para Rescisão (GRUPO C) | F88: % | G88: Valor (R$)
A89: A | B89: Aviso prévio indenizado | F89: 0.0371 | G89: =$F$39*F89 -> 93.01034925
A90: B | B90: Aviso prévio trabalhado | F90: 0.0009 | G90: =$F$39*F90 -> 2.25631575
A91: C | B91: Férias indenizadas + 1/3 | F91: 0.0375 | G91: =$F$39*F91 -> 94.01315625
A92: D | B92: Depósito rescisão sem justa causa | F92: 0.0361 | G92: =$F$39*F92 -> 90.50333175
A93: E | B93: Indenização adicional | F93: 0.0031 | G93: =$F$39*F93 -> 7.77175425
A94: TOTAL | F94: =SUM(F89:F93) -> 0.1147 | G94: =SUM(G89:G93) -> 287.5549072
A96: Submódulo 4.4 - GRUPO D
A98: 4.4 | B98: GRUPO D | F98: % | G98: Valor (R$)
A99: A | B99: Reincidência do Grupo A sobre o Grupo B | F99: 0.0604 | G99: =F39*F99 -> 151.423857
A100: B | B100: Reincidência do Grupo A sobre Aviso Prévio Trabalhado e Reincidência do FGTS sobre o Aviso Prévio Indenizado | F100: 0.0033 | G100: =F39*F100 -> 8.27315775
A101: TOTAL | F101: =SUM(F99:F100) -> 0.0637 | G101: =SUM(G99:G100) -> 159.6970147
A103: Quadro - resumo - Módulo 4 - Encargos sociais e trabalhistas
A105: 4 | B105: Módulo 4 - Encargos sociais e trabalhistas | F105: % | G105: Valor (R$)
A106: 4.1 | B106: Encargos Previdenciários e FGTS (GRUPO A) | F106: =F72 -> 0.368 | G106: =ROUND(F39*F106,2) -> 922.58
A107: 4.2 | B107: 13º Salário e Adicional de Férias (GRUPO B) | F107: =F84 -> 0.1599 | G107: =F39*F107 -> 400.8720982
A108: 4.3 | B108: Provisão para Rescisão (GRUPO C) | F108: =F94 -> 0.1147 | G108: =F108*F39 -> 287.5549072
A109: 4.4 | B109: GRUPO D | F109: =F101 -> 0.0637 | G109: =F109*F39 -> 159.6970147
A110: TOTAL | F110: =SUM(F106:F109) -> 0.7063 | G110: =ROUND(SUM(G106:G109),2) -> 1770.7
A115: MÓDULO 5 - CUSTOS INDIRETOS, TRIBUTOS E LUCRO
A117: 5 | B117: Custos Indiretos, Tributos e Lucro | F117: % | G117: Valor (R$)
A118: A | B118: Custos Indiretos - Despesas Administrativas | F118: 0.06 | G118: =ROUND(F133*F118,2) -> 295.64
A119: B | B119: Tributos | F119: =SUM(F120:F122) -> 0.1662 | G119: =SUM(G120:G122) -> 926.99 | H119: =G119/F135 -> 0.142513429
B120: B.1 Tributos Federais (PIS: 1,65%) (COFINS: 7,60%) | F120: 0.1079 | G120: =ROUND(F120*(F133+G118+G123),2) -> 601.82 | H120: =G120/F135 -> 0.09252249953
B121: B.2 Tributos Estaduais | F121: 0,00% | G121: 0
B122: B.3 Tributos Municipais (ISS: 5,00%) | F122: 0.0583 | G122: =ROUND(F122*(F133+G118+G123),2) -> 325.17 | H122: =G122/F135 -> 0.04999092947
A123: C | B123: Lucro | F123: 0.0679 | G123: =ROUND(F123*(F133+G118),2) -> 354.64
A124: TOTAL | F124: =G124/F133 -> 0.3201077261 | G124: =ROUND(G118+G119+G123,2) -> 1577.27
A126: Anexo II - B - Quadro-resumo do Custo por Empregado
A128: Mão-de-obra vinculada à execução contratual (valor por empregado) | F128: Valor (R$)
A129: A | B129: Módulo 1 – Composição da Remuneração | F129: =ROUND(F39,2) -> 2507.02
A130: B | B130: Módulo 2 – Benefícios Mensais e Diários | F130: =F49 -> 403.45
A131: C | B131: Módulo 3 – Insumos Diversos (uniformes, materiais, equip. e outros) | F131: =F57 -> 246.1433333
A132: D | B132: Módulo 4 – Encargos Sociais e Trabalhistas | F132: =G110 -> 1770.7
B133: Subtotal (A + B +C+ D) | F133: =ROUND(SUM(F129:G132),2) -> 4927.31
A134: E | B134: Módulo 5 – Custos indiretos, tributos e lucro | F134: =G124 -> 1577.27
A135: Valor total por empregado | F135: =F133+F134 -> 6504.58
A137: Anexo III - C - Quadro-resumo - VALOR MENSAL DOS SERVIÇOS
A139: Tipo de | C139: Valor proposto | D139: Qtde de | E139: Valor proposto | F139: Qtde total de | G139: Valor total
A140: Serviço | C140: por | D140: empregados | E140: por posto | F140: empregados | G140: do serviço
A141: (A) | C141: empregado (B) | E141: (D) = (B x C) | F141: (E) | G141: (F) = (D x E)
A142: I | B142: Eletricista | C142: =F135 -> 6504.58 | D142: 1 | E142: =C142 -> 6504.58 | F142: 1 | G142: =E142*F142 -> 6504.58
A143: Valor Mensal dos serviços | G143: =G142 -> 6504.58
A145: Anexo III - D - Quadro - demonstrativo - VALOR GLOBAL DA PROPOSTA
A147: Valor Global da Proposta
B148: Descrição | F148: Valor (R$)
A149: A | B149: Valor proposto por unidade de medida | F149: =E142 -> 6504.58
A150: B | B150: Valor mensal do serviço | F150: =G143 -> 6504.58
A151: C | B151: Valor global da proposta (valor pelo período do contrato - doze meses) | F151: =F150*12 -> 78054.96 | I151: =F151+CANALEIRO!F151+'AJUDANTE COMUM'!F151 -> 298354.2
I152: =I151-PFS!N28 -> -0.24

Sheet CANALEIRO
A2: PLANILHA DE CUSTOS E FORMAÇÃO DE PREÇOS
A4: Nº Processo
A5: Licitação Nº
A6: Dia ___/___/___ às ___:___ horas
A8: Contratação dos serviços de operação de escavadeira hidráulica
A12: A | B12: Data de apresentação da proposta (dia/mês/ano)
A13: B | B13: Município/UF | F13: Aracaju/SE
A14: C | B14: Ano Acordo, Convenção ou Sentença Normativa em Dissídio Coletivo | F14: .2023
A15: D | B15: Nº de meses de execução contratual | F15: 12
A17: Identificação do Serviço
A19: Tipo de Seviço | D19: Unidade de medida | F19: Quantidade total a contratar
A20: I | B20: Canaleiro | D20: 1 | F20: 3
A22: Anexo II - A - Mão-de Obra
A23: Mão-de-obra vincula à execução contratual
A24: Dados complementares para composição dos custos referente à mão-de-obra
A25: 1 | B25: Tipo de serviço | F25: Oper. de Adutoras e Canais
A26: 2 | B26: Salário sem encargos (SINDUSCON/2023) | F26: 1320
A27: 3 | B27: Categoria profissional | F27: Ajudante Comum
A28: 4 | B28: Data-base da categoria | F28: 1º de março
A30: MÓDULO 1 : COMPOSIÇÃO DA REMUNERAÇÃO
A31: 1 | B31: Composição da remuneração | F31: Valor (R$)
A32: A | B32: Salário Base | F32: =F26 -> 1320
A33: B | B33: Risco Profissional (30%) - Uso de motocicleta no trabalho Lei nº12.997/14 | F33: =F32*0.3 -> 396
A34: C | B34: Produtividade (6%) | F34: 0
A35: D | B35: Adicional Noturno (25%) | F35: 0
A36: E | B36: Descanso Semanal Remunerado | F36: =F37*20% -> 0
A37: F | B37: Intervalo Intrajornada (CLT) | F37: 0
A38: G | B38: Hora Feriado (CLT) | F38: =(F32+F33+F34)/220*10/2 -> 39
A39: Total da Remuneração | F39: =SUM(F32:G38) -> 1755
A41: MÓDULO 2 : BENEFÍCIOS MENSAIS E DIÁRIOS
A42: 2 | B42: Benefícios mensais e diários | F42: Valor (R$)
A43: A | B43: Transporte (de responsabilidade da CODEVASF) | F43: 0
A44: B | B44: Auxílio alimentação - Cesta Básica (SINDUSCON 2023) | F44: 175
A45: C | B45: Assistência médica e familiar | F45: 0
A46: D | B46: Auxílio creche | F46: 0
A47: E | B47: Seguro de vida, invalidez e funeral (SINAPI 40864) | F47: 12.89
A48: F | B48: Exames (SINAPI 40863) | F48: 215.56
A49: Total de benefícios mensais e diários | F49: =SUM(F43:G48) -> 403.45
A51: MÓDULO 3 : INSUMOS DIVERSOS
A52: 3 | B52: Insumos Diversos | F52: Valor (R$)
A53: A | B53: EPI (SINAPI 43496) | F53: 214.4
A54: B | B54: Fardamento (ORSE 00941) - (2 unid x R$ 190,46)/12= R$ 31,74 | F54: =2*190.46/12 -> 31.74333333
A55: C | B55: Cursos | F55: 0
A56: D | B56: Outros (especificar) | F56: 0
A57: Total de insumos diversos | F57: =SUM(F53:G56) -> 246.1433333
A59: MÓDULO 4: ENCARGOS SOCIAIS E TRABALHISTAS
A61: Submódulo 4.1 - Encargos previdenciários e FGTS
A63: 4.1 | B63: Encargos Previdenciários e FGTS (GRUPO A) | F63: % | G63: Valor (R$)
A64: A | B64: INSS | F64: 0.2 | G64: =F$39*F64 -> 351
A65: B | B65: SESI/SESC | F65: 0.015 | G65: 26.325
A66: C | B66: SENAI/SENAC | F66: 0.01 | G66: 17.55
A67: D | B67: INCRA | F67: 0.002 | G67: 3.51
A68: E | B68: Salário Educação | F68: 0.025 | G68: 43.875
A69: F | B69: FGTS | F69: 0.08 | G69: 140.4
A70: G | B70: Seguro acidente de trabalho | F70: 0.03 | G70: 52.65
A71: H | B71: SEBRAE | F71: 0.006 | G71: 10.53
A72: TOTAL | F72: =SUM(F64:F71) -> 0.368 | G72: =SUM(G64:G71) -> 645.84
A74: Submódulo 4.2 - 13º Salário e Adicional de Férias
A76: 4.2 | B76: 13º Salário e Adicional de Férias (GRUPO B) | F76: % | G76: Valor (R$)
A77: A | B77: 13º Salário | F77: 0.0833 | G77: =$F$39*F77 -> 146.1915
A78: B | B78: Férias gozadas | F78: 0.0624 | G78: =($F$39*F78) -> 109.512
A79: C | B79: Auxílio enfermidade | F79: 0.0069 | G79: =$F$39*F79 -> 12.1095
A80: D | B80: Licença paternidade | F80: 0.0006 | G80: =$F$39*F80 -> 1.053
A81: E | B81: Faltas justificadas | F81: 0.0056 | G81: =$F$39*F81 -> 9.828
A82: F | B82: Auxílio acidente de trabalho | F82: 0.0009 | G82: =$F$39*F82 -> 1.5795
A83: G | B83: Salário maternidade | F83: 0.0002 | G83: =$F$39*F83 -> 0.351
A84: TOTAL | F84: =SUM(F77:F83) -> 0.1599 | G84: =SUM(G77:G83) -> 280.6245
A86: Submódulo 4.3 - Provisão para Rescisão
A88: 4.3 | B88: Provisão para Rescisão (GRUPO C) | F88: % | G88: Valor (R$)
A89: A | B89: Aviso prévio indenizado | F89: 0.0371 | G89: =$F$39*F89 -> 65.1105
A90: B | B90: Aviso prévio trabalhado | F90: 0.0009 | G90: =$F$39*F90 -> 1.5795
A91: C | B91: Férias indenizadas + 1/3 | F91: 0.0375 | G91: =$F$39*F91 -> 65.8125
A92: D | B92: Depósito rescisão sem justa causa | F92: 0.0361 | G92: =$F$39*F92 -> 63.3555
A93: E | B93: Indenização adicional | F93: 0.0031 | G93: =$F$39*F93 -> 5.4405
A94: TOTAL | F94: =SUM(F89:F93) -> 0.1147 | G94: =SUM(G89:G93) -> 201.2985
A96: Submódulo 4.4 - GRUPO D
A98: 4.4 | B98: GRUPO D | F98: % | G98: Valor (R$)
A99: A | B99: Reincidência do Grupo A sobre o Grupo B | F99: 0.0604 | G99: =F39*F99 -> 106.002
A100: B | B100: Reincidência do Grupo A sobre Aviso Prévio Trabalhado e Reincidência do FGTS sobre o Aviso Prévio Indenizado | F100: 0.0033 | G100: =F39*F100 -> 5.7915
A101: TOTAL | F101: =SUM(F99:F100) -> 0.0637 | G101: =SUM(G99:G100) -> 111.7935
A103: Quadro - resumo - Módulo 4 - Encargos sociais e trabalhistas
A105: 4 | B105: Módulo 4 - Encargos sociais e trabalhistas | F105: % | G105: Valor (R$)
A106: 4.1 | B106: Encargos Previdenciários e FGTS (GRUPO A) | F106: =F72 -> 0.368 | G106: =ROUND(F39*F106,2) -> 645.84
A107: 4.2 | B107: 13º Salário e Adicional de Férias (GRUPO B) | F107: =F84 -> 0.1599 | G107: =F39*F107 -> 280.6245
A108: 4.3 | B108: Provisão para Rescisão (GRUPO C) | F108: =F94 -> 0.1147 | G108: =F108*F39 -> 201.2985
A109: 4.4 | B109: GRUPO D | F109: =F101 -> 0.0637 | G109: =F109*F39 -> 111.7935
A110: TOTAL | F110: =SUM(F106:F109) -> 0.7063 | G110: =ROUND(SUM(G106:G109),2) -> 1239.56
A115: MÓDULO 5 - CUSTOS INDIRETOS, TRIBUTOS E LUCRO
A117: 5 | B117: Custos Indiretos, Tributos e Lucro | F117: % | G117: Valor (R$)
A118: A | B118: Custos Indiretos - Despesas Administrativas | F118: 0.06 | G118: =ROUND(F133*F118,2) -> 218.65
A119: B | B119: Tributos | F119: =SUM(F120:F122) -> 0.1662 | G119: =SUM(G120:G122) -> 685.59 | H119: =G119/F135 -> 0.1425144522
B120: B.1 Tributos Federais (PIS: 1,65%) (COFINS: 7,60%) | F120: 0.1079 | G120: =ROUND(F120*(F133+G118+G123),2) -> 445.1 | H120: =G120/F135 -> 0.09252349465
B121: B.2 Tributos Estaduais | F121: 0,00% | G121: 0
B122: B.3 Tributos Municipais (ISS: 5,00%) | F122: 0.0583 | G122: =ROUND(F122*(F133+G118+G123),2) -> 240.49 | H122: =G122/F135 -> 0.0499909576
A123: C | B123: Lucro | F123: 0.0679 | G123: =ROUND(F123*(F133+G118),2) -> 262.28
A124: TOTAL | F124: =G124/F133 -> 0.3201075697 | G124: =ROUND(G118+G119+G123,2) -> 1166.52
A126: Anexo II - B - Quadro-resumo do Custo por Empregado
A128: Mão-de-obra vinculada à execução contratual (valor por empregado) | F128: Valor (R$)
A129: A | B129: Módulo 1 – Composição da Remuneração | F129: =ROUND(F39,2) -> 1755
A130: B | B130: Módulo 2 – Benefícios Mensais e Diários | F130: =F49 -> 403.45
A131: C | B131: Módulo 3 – Insumos Diversos (uniformes, materiais, equip. e outros) | F131: =F57 -> 246.1433333
A132: D | B132: Módulo 4 – Encargos Sociais e Trabalhistas | F132: =G110 -> 1239.56
B133: Subtotal (A + B +C+ D) | F133: =ROUND(SUM(F129:G132),2) -> 3644.15
A134: E | B134: Módulo 5 – Custos indiretos, tributos e lucro | F134: =G124 -> 1166.52
A135: Valor total por empregado | F135: =F133+F134 -> 4810.67
A137: Anexo III - C - Quadro-resumo - VALOR MENSAL DOS SERVIÇOS
A139: Tipo de | C139: Valor proposto | D139: Qtde de | E139: Valor proposto | F139: Qtde total de | G139: Valor total
A140: Serviço | C140: por | D140: empregados | E140: por posto | F140: empregados | G140: do serviço
A141: (A) | C141: empregado (B) | E141: (D) = (B x C) | F141: (E) | G141: (F) = (D x E)
A142: I | B142: Canaleiro | C142: =F135 -> 4810.67 | D142: 3 | E142: =C142 -> 4810.67 | F142: 3 | G142: =E142*F142 -> 14432.01
A143: Valor Mensal dos serviços | G143: =G142 -> 14432.01
A145: Anexo III - D - Quadro - demonstrativo - VALOR GLOBAL DA PROPOSTA
A147: Valor Global da Proposta
B148: Descrição | F148: Valor (R$)
A149: A | B149: Valor proposto por unidade de medida | F149: =E142 -> 4810.67
A150: B | B150: Valor mensal do serviço | F150: =G143 -> 14432.01
A151: C | B151: Valor global da proposta (valor pelo período do contrato - doze meses) | F151: =F150*12 -> 173184.12

Sheet AJUDANTE COMUM
A2: PLANILHA DE CUSTOS E FORMAÇÃO DE PREÇOS
A4: Nº Processo
A5: Licitação Nº
A6: Dia ___/___/___ às ___:___ horas
A8: Contratação dos serviços de operação de escavadeira hidráulica
A12: A | B12: Data de apresentação da proposta (dia/mês/ano)
A13: B | B13: Município/UF | F13: Aracaju/SE
A14: C | B14: Ano Acordo, Convenção ou Sentença Normativa em Dissídio Coletivo | F14: .2023
A15: D | B15: Nº de meses de execução contratual | F15: 1
A17: Identificação do Serviço
A19: Tipo de Seviço | D19: Unidade de medida | F19: Quantidade total a contratar
A20: I | B20: Ajudante Comum | D20: 1 | F20: 1
A22: Anexo II - A - Mão-de Obra
A23: Mão-de-obra vincula à execução contratual
A24: Dados complementares para composição dos custos referente à mão-de-obra
A25: 1 | B25: Tipo de serviço | F25: Ajudante Comum
A26: 2 | B26: Salário sem encargos (SINDUSCON/2023) | F26: 1320
A27: 3 | B27: Categoria profissional | F27: Ajudante Comum
A28: 4 | B28: Data-base da categoria | F28: 1º de março
A30: MÓDULO 1 : COMPOSIÇÃO DA REMUNERAÇÃO
A31: 1 | B31: Composição da remuneração | F31: Valor (R$)
A32: A | B32: Salário Base | F32: =F26 -> 1320
A33: B | B33: Risco Profissional (30%) | F33: 0
A34: C | B34: Produtividade (6%) | F34: 0
A35: D | B35: Adicional Noturno (25%) | F35: 0
A36: E | B36: Descanso Semanal Remunerado | F36: =F37*20% -> 0
A37: F | B37: Intervalo Intrajornada (CLT) | F37: 0
A38: G | B38: Hora Feriado (CLT) | F38: =(F32+F33+F34)/220*10/2 -> 30
A39: Total da Remuneração | F39: =SUM(F32:G38) -> 1350
A41: MÓDULO 2 : BENEFÍCIOS MENSAIS E DIÁRIOS
A42: 2 | B42: Benefícios mensais e diários | F42: Valor (R$)
A43: A | B43: Transporte (de responsabilidade da CODEVASF) | F43: 0
A44: B | B44: Auxílio alimentação - Cesta Básica (SINDUSCON 2023) | F44: 175
A45: C | B45: Assistência médica e familiar | F45: 0
A46: D | B46: Auxílio creche | F46: 0
A47: E | B47: Seguro de vida, invalidez e funeral (SINAPI 40864) | F47: 12.89
A48: F | B48: Exames (SINAPI 40863) | F48: 215.56
A49: Total de benefícios mensais e diários | F49: =SUM(F43:G48) -> 403.45
A51: MÓDULO 3 : INSUMOS DIVERSOS
A52: 3 | B52: Insumos Diversos | F52: Valor (R$)
A53: A | B53: EPI (SINAPI 43503) | F53: 235.5
A54: B | B54: Fardamento (ORSE 00941) - (2 unid x R$ 190,46)/12= R$ 31,74 | F54: =2*190.46/12 -> 31.74333333
A55: C | B55: Cursos | F55: 0
A56: D | B56: Outros (especificar) | F56: 0
A57: Total de insumos diversos | F57: =SUM(F53:G56) -> 267.2433333
A59: MÓDULO 4: ENCARGOS SOCIAIS E TRABALHISTAS
A61: Submódulo 4.1 - Encargos previdenciários e FGTS
A63: 4.1 | B63: Encargos Previdenciários e FGTS (GRUPO A) | F63: % | G63: Valor (R$)
A64: A | B64: INSS | F64: 0.2 | G64: =F$39*F64 -> 270
A65: B | B65: SESI/SESC | F65: 0.015 | G65: 20.25
A66: C | B66: SENAI/SENAC | F66: 0.01 | G66: 13.5
A67: D | B67: INCRA | F67: 0.002 | G67: 2.7
A68: E | B68: Salário Educação | F68: 0.025 | G68: 33.75
A69: F | B69: FGTS | F69: 0.08 | G69: 108
A70: G | B70: Seguro acidente de trabalho | F70: 0.03 | G70: 40.5
A71: H | B71: SEBRAE | F71: 0.006 | G71: 8.1
A72: TOTAL | F72: =SUM(F64:F71) -> 0.368 | G72: =SUM(G64:G71) -> 496.8
A74: Submódulo 4.2 - 13º Salário e Adicional de Férias
A76: 4.2 | B76: 13º Salário e Adicional de Férias (GRUPO B) | F76: % | G76: Valor (R$)
A77: A | B77: 13º Salário | F77: 0.0833 | G77: =$F$39*F77 -> 112.455
A78: B | B78: Férias gozadas | F78: 0.0624 | G78: =($F$39*F78) -> 84.24
A79: C | B79: Auxílio enfermidade | F79: 0.0069 | G79: =$F$39*F79 -> 9.315
A80: D | B80: Licença paternidade | F80: 0.0006 | G80: =$F$39*F80 -> 0.81
A81: E | B81: Faltas justificadas | F81: 0.0056 | G81: =$F$39*F81 -> 7.56
A82: F | B82: Auxílio acidente de trabalho | F82: 0.0009 | G82: =$F$39*F82 -> 1.215
A83: G | B83: Salário maternidade | F83: 0.0002 | G83: =$F$39*F83 -> 0.27
A84: TOTAL | F84: =SUM(F77:F83) -> 0.1599 | G84: =SUM(G77:G83) -> 215.865
A86: Submódulo 4.3 - Provisão para Rescisão
A88: 4.3 | B88: Provisão para Rescisão (GRUPO C) | F88: % | G88: Valor (R$)
A89: A | B89: Aviso prévio indenizado | F89: 0.0371 | G89: =$F$39*F89 -> 50.085
A90: B | B90: Aviso prévio trabalhado | F90: 0.0009 | G90: =$F$39*F90 -> 1.215
A91: C | B91: Férias indenizadas + 1/3 | F91: 0.0375 | G91: =$F$39*F91 -> 50.625
A92: D | B92: Depósito rescisão sem justa causa | F92: 0.0361 | G92: =$F$39*F92 -> 48.735
A93: E | B93: Indenização adicional | F93: 0.0031 | G93: =$F$39*F93 -> 4.185
A94: TOTAL | F94: =SUM(F89:F93) -> 0.1147 | G94: =SUM(G89:G93) -> 154.845
A96: Submódulo 4.4 - GRUPO D
A98: 4.4 | B98: GRUPO D | F98: % | G98: Valor (R$)
A99: A | B99: Reincidência do Grupo A sobre o Grupo B | F99: 0.0604 | G99: =F39*F99 -> 81.54
A100: B | B100: Reincidência do Grupo A sobre Aviso Prévio Trabalhado e Reincidência do FGTS sobre o Aviso Prévio Indenizado | F100: 0.0033 | G100: =F39*F100 -> 4.455
A101: TOTAL | F101: =SUM(F99:F100) -> 0.0637 | G101: =SUM(G99:G100) -> 85.995
A103: Quadro - resumo - Módulo 4 - Encargos sociais e trabalhistas
A105: 4 | B105: Módulo 4 - Encargos sociais e trabalhistas | F105: % | G105: Valor (R$)
A106: 4.1 | B106: Encargos Previdenciários e FGTS (GRUPO A) | F106: =F72 -> 0.368 | G106: =ROUND(F39*F106,2) -> 496.8
A107: 4.2 | B107: 13º Salário e Adicional de Férias (GRUPO B) | F107: =F84 -> 0.1599 | G107: =F39*F107 -> 215.865
A108: 4.3 | B108: Provisão para Rescisão (GRUPO C) | F108: =F94 -> 0.1147 | G108: =F108*F39 -> 154.845
A109: 4.4 | B109: GRUPO D | F109: =F101 -> 0.0637 | G109: =F109*F39 -> 85.995
A110: TOTAL | F110: =SUM(F106:F109) -> 0.7063 | G110: =ROUND(SUM(G106:G109),2) -> 953.51
A115: MÓDULO 5 - CUSTOS INDIRETOS, TRIBUTOS E LUCRO
A117: 5 | B117: Custos Indiretos, Tributos e Lucro | F117: % | G117: Valor (R$)
A118: A | B118: Custos Indiretos - Despesas Administrativas | F118: 0.06 | G118: =ROUND(F133*F118,2) -> 178.45
A119: B | B119: Tributos | F119: =SUM(F120:F122) -> 0.1662 | G119: =SUM(G120:G122) -> 559.55 | H119: =G119/F135 -> 0.1425147596
B120: B.1 Tributos Federais (PIS: 1,65%) (COFINS: 7,60%) | F120: 0.1079 | G120: =ROUND(F120*(F133+G118+G123),2) -> 363.27 | H120: =G120/F135 -> 0.09252316454
B121: B.2 Tributos Estaduais | F121: 0,00% | G121: 0
B122: B.3 Tributos Municipais (ISS: 5,00%) | F122: 0.0583 | G122: =ROUND(F122*(F133+G118+G123),2) -> 196.28 | H122: =G122/F135 -> 0.04999159505
A123: C | B123: Lucro | F123: 0.0679 | G123: =ROUND(F123*(F133+G118),2) -> 214.06
A124: TOTAL | F124: =G124/F133 -> 0.3201062471 | G124: =ROUND(G118+G119+G123,2) -> 952.06
A126: Anexo II - B - Quadro-resumo do Custo por Empregado
A128: Mão-de-obra vinculada à execução contratual (valor por empregado) | F128: Valor (R$)
A129: A | B129: Módulo 1 – Composição da Remuneração | F129: =ROUND(F39,2) -> 1350
A130: B | B130: Módulo 2 – Benefícios Mensais e Diários | F130: =F49 -> 403.45
A131: C | B131: Módulo 3 – Insumos Diversos (uniformes, materiais, equip. e outros) | F131: =F57 -> 267.2433333
A132: D | B132: Módulo 4 – Encargos Sociais e Trabalhistas | F132: =G110 -> 953.51
B133: Subtotal (A + B +C+ D) | F133: =ROUND(SUM(F129:G132),2) -> 2974.2
A134: E | B134: Módulo 5 – Custos indiretos, tributos e lucro | F134: =G124 -> 952.06
A135: Valor total por empregado | F135: =F133+F134 -> 3926.26
A137: Anexo III - C - Quadro-resumo - VALOR MENSAL DOS SERVIÇOS
A139: Tipo de | C139: Valor proposto | D139: Qtde de | E139: Valor proposto | F139: Qtde total de | G139: Valor total
A140: Serviço | C140: por | D140: empregados | E140: por posto | F140: empregados | G140: do serviço
A141: (A) | C141: empregado (B) | E141: (D) = (B x C) | F141: (E) | G141: (F) = (D x E)
A142: I | B142: Ajudante Comum | C142: =F135 -> 3926.26 | D142: 1 | E142: =C142 -> 3926.26 | F142: 1 | G142: =E142*F142 -> 3926.26
A143: Valor Mensal dos serviços | G143: =G142 -> 3926.26
A145: Anexo III - D - Quadro - demonstrativo - VALOR GLOBAL DA PROPOSTA
A147: Valor Global da Proposta
B148: Descrição | F148: Valor (R$)
A149: A | B149: Valor proposto por unidade de medida | F149: =E142 -> 3926.26
A150: B | B150: Valor mensal do serviço | F150: =G143 -> 3926.26
A151: C | B151: Valor global da proposta (valor pelo período do contrato - doze meses) | F151: =F150*12 -> 47115.12
